fUSD/lending_fUSD_20251025
["ID","MTS","AMOUNT","RATE_DAILY","PERIOD"]
[392371753,1761407521494,-526.85,0.0003589,9]
[392371754,1761407521503,-627.18,0.0003589,9]
[392371755,1761407521513,-500.0,0.0003589,9]
[392371756,1761407521523,-500.0,0.0003589,9]
[392371757,1761407521532,-500.0,0.0003589,9]
[392371758,1761407521542,-500.0,0.0003589,9]
[392371759,1761407521551,-500.0,0.0003589,9]
[392371760,1761407521560,-586.80504543,0.0003589,9]
[392371761,1761407521569,-4318.47,0.0003589,2]
[392371762,1761407521578,-500.0,0.0003589,9]
[392371763,1761407521588,-500.0,0.0003589,9]
[392371764,1761407521597,-500.0,0.0003589,9]
[392371765,1761407521606,-500.0,0.0003589,9]
[392371766,1761407521616,-729.5,0.0003589,2]
[392371767,1761407521625,-500.0,0.0003589,9]
[392371768,1761407521635,-500.0,0.0003589,9]
[392371769,1761407521645,-500.0,0.0003589,9]
[392371770,1761407521655,-500.0,0.0003589,9]
[392371771,1761407521665,-546.95,0.0003589,9]
[392371772,1761407521675,-500.0,0.0003589,9]
[392371773,1761407521684,-500.0,0.0003589,9]
[392371774,1761407521694,-500.0,0.0003589,9]
[392371775,1761407521703,-500.0,0.0003589,9]
[392371776,1761407521713,-500.0,0.0003589,9]
[392371777,1761407521722,-630.48004951,0.0003589,2]
[392371778,1761407521731,-500.0,0.0003589,9]
[392371779,1761407521741,-527.81,0.0003589,9]
[392371780,1761407521750,-512.17,0.0003589,9]
[392371781,1761407521760,-500.0,0.0003589,9]
[392371782,1761407521770,-500.0,0.0003589,9]
[392371783,1761407521779,-500.0,0.0003589,9]
[392371784,1761407521789,-500.0,0.0003589,9]
[392371785,1761407521799,-534.68,0.0003589,9]
[392371786,1761407521808,-500.0,0.0003589,9]
[392371787,1761407521818,-500.0,0.0003589,9]
[392371788,1761407521827,-500.0,0.0003589,9]
[392371789,1761407521836,-500.0,0.0003589,9]
[392371790,1761407521845,-500.0,0.0003589,9]
[392371791,1761407521855,-500.0,0.0003589,9]
[392371792,1761407521864,-500.0,0.0003589,9]
[392371793,1761407521874,-500.0,0.0003589,9]
[392371794,1761407521883,-500.0,0.0003589,9]
[392371795,1761407521892,-500.0,0.0003589,9]
[392371796,1761407521901,-300.0,0.0003589,2]
[392371797,1761407521910,-500.0,0.0003589,9]
[392371798,1761407521920,-500.0,0.0003589,9]
[392371799,1761407521929,-500.0,0.0003589,9]
[392371800,1761407521938,-500.0,0.0003589,9]
[392371801,1761407521947,-500.0,0.0003589,9]
[392371802,1761407521957,-500.0,0.0003589,9]
[392371803,1761407521966,-500.0,0.0003589,9]
[392371804,1761407521976,-500.0,0.0003589,9]
[392371805,1761407521985,-500.0,0.0003589,9]
[392371806,1761407521994,-502.39,0.0003589,9]
[392371807,1761407522003,-500.0,0.0003589,9]
[392371808,1761407522013,-500.0,0.0003589,9]
[392371809,1761407522022,-500.0,0.0003589,9]
[392371810,1761407522031,-500.0,0.0003589,9]
[392371811,1761407522039,-500.0,0.0003589,9]
[392371812,1761407522049,-524.93,0.0003589,9]
[392371813,1761407522058,-500.0,0.0003589,9]
[392371814,1761407522068,-500.0,0.0003589,9]
[392371815,1761407522078,-500.0,0.0003589,9]
[392371816,1761407522087,-537.16,0.0003589,9]
[392371817,1761407522096,-500.0,0.0003589,9]
[392371818,1761407522107,-555.59,0.0003589,9]
[392371819,1761407522117,-500.0,0.0003589,9]
[392371820,1761407522128,-675.84,0.0003589,9]
[392371821,1761407522139,-500.0,0.0003589,9]
[392371822,1761407522149,-500.0,0.0003589,9]
[392371823,1761407522158,-500.0,0.0003589,9]
[392371824,1761407522167,-500.0,0.0003589,9]
[392371825,1761407522177,-500.0,0.0003589,9]
[392371826,1761407522186,-567.53,0.0003589,9]
[392371827,1761407522195,-500.0,0.0003589,9]
[392371828,1761407522205,-500.0,0.0003589,9]
[392371829,1761407522214,-500.0,0.0003589,9]
[392371830,1761407522224,-643.36567083,0.0003589,9]
[392371831,1761407522232,-321.82767401,0.0003589,9]
[392371832,1761407522242,-500.0,0.0003589,9]
[392371833,1761407522251,-500.0,0.0003589,9]
[392371834,1761407522262,-500.0,0.0003589,9]
[392371835,1761407522271,-500.0,0.0003589,9]
[392371836,1761407522280,-500.0,0.0003589,9]
[392371837,1761407522290,-1555.41,0.0003589,9]
[392371838,1761407522299,-500.0,0.0003589,9]
[392371839,1761407522308,-500.0,0.0003589,9]
[392371840,1761407522320,-500.0,0.0003589,9]
[392371841,1761407522331,-709.21,0.0003589,9]
[392371842,1761407522340,-500.0,0.0003589,9]
[392371843,1761407522350,-500.0,0.0003589,9]
[392371844,1761407522359,-500.0,0.0003589,9]
[392371845,1761407522369,-1000.0,0.0003589,120]
[392371846,1761407522378,-942.51,0.0003589,9]
[392371847,1761407522388,-500.0,0.0003589,9]
[392371848,1761407522397,-500.0,0.0003589,9]
[392371849,1761407522406,-15600.96,0.0003589,9]
[392371850,1761407522416,-2147.12,0.0003589,9]
[392371852,1761407522565,-500.0,0.0003589,9]
[392371853,1761407522575,-500.0,0.0003589,9]
[392371854,1761407522585,-500.0,0.0003589,9]
[392371855,1761407522595,-406.41931978,0.0003589,9]
[392371856,1761407522604,-500.0,0.0003589,9]
[392371857,1761407522614,-602.26,0.0003589,9]
[392371858,1761407522624,-500.0,0.0003589,9]
[392371859,1761407522633,-553.68,0.0003589,9]
[392371860,1761407522643,-500.0,0.0003589,9]
[392371861,1761407522653,-500.0,0.0003589,9]
[392371862,1761407522662,-500.0,0.0003589,9]
[392371863,1761407522672,-500.0,0.0003589,9]
[392371864,1761407522681,-500.0,0.0003589,9]
[392371865,1761407522691,-500.0,0.0003589,9]
[392371866,1761407522700,-500.0,0.0003589,9]
[392371867,1761407522709,-500.0,0.0003589,9]
[392371868,1761407522719,-1157.24,0.0003589,9]
[392371869,1761407522728,-500.0,0.0003589,9]
[392371870,1761407522738,-899.55,0.0003589,9]
[392371871,1761407522747,-516.77269391,0.0003589,9]
[392371872,1761407522757,-500.0,0.0003589,9]
[392371873,1761407522768,-500.0,0.0003589,9]
[392371874,1761407522778,-500.0,0.0003589,9]
[392371875,1761407522787,-500.0,0.0003589,9]
[392371876,1761407522796,-558.03,0.0003589,9]
[392371877,1761407522805,-657.01,0.0003589,9]
[392371878,1761407522815,-500.0,0.0003589,9]
[392371879,1761407522825,-500.0,0.0003589,9]
[392371880,1761407522834,-500.0,0.0003589,9]
[392371881,1761407522844,-500.0,0.0003589,9]
[392371882,1761407522853,-500.0,0.0003589,9]
[392371883,1761407522863,-500.0,0.0003589,9]
[392371884,1761407522872,-500.0,0.0003589,9]
[392371885,1761407522881,-500.0,0.0003589,9]
[392371886,1761407522891,-500.0,0.0003589,9]
[392371887,1761407522900,-500.0,0.0003589,9]
[392371888,1761407522910,-500.0,0.0003589,9]
[392371889,1761407522919,-500.0,0.0003589,9]
[392371890,1761407522928,-500.0,0.0003589,9]
[392371891,1761407522938,-500.0,0.0003589,7]
[392371892,1761407522948,-500.0,0.0003589,9]
[392371893,1761407522958,-500.0,0.0003589,9]
[392371894,1761407522967,-251.3624214,0.0003589,9]
[392371895,1761407522977,-336.51649591,0.0003589,9]
[392371896,1761407522987,-567.13898145,0.0003589,9]
[392371897,1761407522995,-500.0,0.0003589,9]
[392371898,1761407523005,-500.0,0.0003589,9]
[392371899,1761407523015,-500.0,0.0003589,9]
[392371900,1761407523026,-500.0,0.0003589,9]
[392371901,1761407523035,-1103.76,0.0003589,9]
[392371902,1761407523046,-500.0,0.0003589,9]
[392371903,1761407523055,-586.96,0.0003589,9]
[392371904,1761407523064,-677.29,0.0003589,9]
[392371905,1761407523075,-500.0,0.0003589,9]
[392371906,1761407523084,-500.0,0.0003589,9]
[392371907,1761407523094,-500.0,0.0003589,9]
[392371908,1761407523104,-601.98,0.0003589,9]
[392371909,1761407523113,-755.77,0.0003589,9]
[392371910,1761407523123,-27349.58,0.0003589,9]
[392371911,1761407523133,-3162.18,0.0003589,9]
[392371912,1761407523142,-500.0,0.0003589,9]
[392371913,1761407523152,-500.0,0.0003589,9]
[392371914,1761407523161,-541.75,0.0003589,9]
[392371915,1761407523171,-500.0,0.0003589,9]
[392371916,1761407523180,-500.0,0.0003589,9]
[392371917,1761407523190,-327.7617883,0.0003589,9]
[392371918,1761407523200,-500.0,0.0003589,9]
[392371919,1761407523209,-500.0,0.0003589,9]
[392371920,1761407523219,-568.48,0.0003589,9]
[392371921,1761407523228,-793.74,0.0003589,9]
[392371922,1761407523238,-612.62,0.0003589,9]
[392371923,1761407523248,-580.5,0.0003589,9]
[392371924,1761407523258,-500.0,0.0003589,9]
[392371925,1761407523268,-500.0,0.0003589,9]
[392371926,1761407523277,-512.1,0.0003589,9]
[392371927,1761407523287,-500.0,0.0003589,9]
[392371928,1761407523296,-500.0,0.0003589,9]
[392371929,1761407523305,-500.0,0.0003589,9]
[392371930,1761407523316,-500.0,0.0003589,9]
[392371931,1761407523332,-500.0,0.0003589,9]
[392371932,1761407523342,-500.0,0.0003589,9]
[392371933,1761407523352,-500.0,0.0003589,9]
[392371934,1761407523361,-500.0,0.0003589,9]
[392371935,1761407523371,-500.0,0.0003589,9]
[392371936,1761407523381,-500.0,0.0003589,9]
[392371937,1761407523390,-500.0,0.0003589,9]
[392371938,1761407523400,-500.0,0.0003589,9]
[392371939,1761407523410,-647.33,0.0003589,9]
[392371940,1761407523419,-601.16,0.0003589,9]
[392371941,1761407523430,-500.0,0.0003589,9]
[392371942,1761407523440,-500.0,0.0003589,9]
[392371943,1761407523451,-308.81259362,0.0003589,9]
[392371944,1761407523461,-500.0,0.0003589,9]
[392371945,1761407523470,-504.95,0.0003589,9]
[392371946,1761407523479,-2016.49,0.0003589,9]
[392371947,1761407523488,-500.0,0.0003589,9]
[392371948,1761407523498,-500.0,0.0003589,9]
[392371949,1761407523507,-500.0,0.0003589,9]
[392371950,1761407523518,-544.29,0.0003589,9]
[392371951,1761407523527,-500.0,0.0003589,9]
[392371952,1761407523538,-624.17,0.0003589,9]
[392371953,1761407523548,-500.0,0.0003589,9]
[392371954,1761407523558,-1578.34,0.0003589,9]
[392371955,1761407523567,-500.0,0.0003589,9]
[392371956,1761407523578,-500.0,0.0003589,9]
[392371957,1761407523589,-1038.04,0.0003589,9]
[392371958,1761407523599,-868.13,0.0003589,9]
[392371959,1761407523608,-500.0,0.0003589,9]
[392371960,1761407523618,-500.0,0.0003589,9]
[392371961,1761407523627,-500.0,0.0003589,9]
[392371962,1761407523637,-184.6784151,0.0003589,9]
[392371963,1761407523647,-917.77,0.0003589,9]
[392371964,1761407523656,-645.71,0.0003589,9]
[392371965,1761407523666,-890.81,0.0003589,9]
[392371966,1761407523675,-500.0,0.0003589,9]
[392371967,1761407523685,-500.0,0.0003589,9]
[392371968,1761407523695,-500.0,0.0003589,9]
[392371969,1761407523704,-500.0,0.0003589,9]
[392371970,1761407523713,-500.0,0.0003589,9]
[392371971,1761407523723,-500.0,0.0003589,9]
[392371972,1761407523733,-543.66,0.0003589,9]
[392371973,1761407523743,-500.0,0.0003589,9]
[392371974,1761407523753,-500.0,0.0003589,9]
[392371975,1761407523762,-500.0,0.0003589,9]
[392371976,1761407523771,-500.0,0.0003589,9]
[392371977,1761407523781,-500.0,0.0003589,9]
[392371978,1761407523790,-620.95,0.0003589,9]
[392371979,1761407523799,-501.95,0.0003589,9]
[392371980,1761407523808,-500.0,0.0003589,9]
[392371981,1761407523819,-163.4926283,0.0003589,9]
[392371982,1761407523828,-500.0,0.0003589,2]
[392371983,1761407523838,-500.0,0.0003589,9]
[392371984,1761407523847,-500.0,0.0003589,9]
[392371985,1761407523857,-500.0,0.0003589,9]
[392371986,1761407523866,-6415.98,0.0003589,9]
[392371987,1761407523876,-500.0,0.0003589,9]
[392371988,1761407523885,-1885.41,0.0003589,9]
[392371989,1761407523895,-548.9,0.0003589,9]
[392371990,1761407523904,-500.0,0.0003589,9]
[392371991,1761407523914,-500.0,0.0003589,9]
[392371992,1761407523923,-500.0,0.00035897,30]
[392371993,1761407523933,-1425.0,0.00035898,2]
[392371994,1761407523943,-500.0,0.0003592,30]
[392371995,1761407523952,-951.15087613,0.00035973,30]
[392371996,1761407523963,-905.17834661,0.00035981,30]
[392371997,1761407523972,-500.0,0.00035987,30]
[392371998,1761407523982,-858.91978975,0.00035988,30]
[392371999,1761407523991,-4827.57958076,0.00035999,7]
[392372000,1761407524000,-5634.77089681,0.00036,2]
[392372001,1761407524010,-14334.57039724,0.00036,30]
[392372002,1761407524019,-161.89125425,0.00036,30]
[392372003,1761407524029,-222198.07610993,0.00036,2]
[392372004,1761407524038,-50116.0511711,0.00036,6]
[392372005,1761407524047,-10690.19649902,0.00036,2]
[392372006,1761407524056,-225.57543739,0.00036,3]
[392372007,1761407524065,-156.77,0.00036,30]
[392372008,1761407524075,-87483.62629058,0.00036,7]
[392372009,1761407524084,-3295.57616,0.00036,2]
[392372010,1761407524094,-1443.15557519,0.00036,120]
[392372011,1761407524103,-477.13839059,0.00036,120]
[392372012,1761407524112,-329.75721588,0.00036,120]
[392372013,1761407524122,-314.85473756,0.00036,120]
[392372014,1761407524131,-240.13465003,0.00036,120]
[392372015,1761407524144,-2016.23,0.00036,36]
[392372016,1761407524153,-163.0,0.00036,30]
[392372017,1761407524164,-1000.0,0.00036011,7]
[392372018,1761407524174,-164.71496407,0.00036027,30]
[392372019,1761407524183,-1425.0,0.00036029,2]
[392372020,1761407524192,-423.39833683,0.00036031,7]
[392372021,1761407524202,-500.0,0.00036033,30]
[392372022,1761407524211,-150.0,0.00036039,2]
[392372023,1761407524220,-150.0,0.00036039,2]
[392372024,1761407524229,-150.0,0.00036039,2]
[392372025,1761407524238,-150.0,0.00036039,2]
[392372026,1761407524247,-1425.0,0.00036063,2]
[392372027,1761407524257,-1000.0,0.00036071,2]
[392372028,1761407524267,-1425.0,0.00036081,2]
[392372029,1761407524276,-760.65841123,0.00036099,2]
[392372030,1761407524286,-28708.65,0.000361,14]
[392372031,1761407524295,-476.4830027,0.000361,3]
[392372032,1761407524304,-575.89236781,0.00036149,7]
[392372033,1761407524314,-156.905914,0.00036164,9]
[392372034,1761407524327,-910.887729,0.00036164,9]
[392372035,1761407524336,-567.385756,0.00036164,9]
[392372036,1761407524350,-500.0,0.00036164,9]
[392372037,1761407524359,-500.0,0.00036164,9]
[392372038,1761407524368,-500.0,0.00036164,9]
[392372039,1761407524378,-500.0,0.00036164,9]
[392372040,1761407524387,-500.0,0.00036164,9]
[392372041,1761407524400,-500.0,0.00036164,9]
[392372042,1761407524410,-320.83259976,0.00036164,9]
[392372043,1761407524420,-500.0,0.00036164,9]
[392372044,1761407524429,-500.0,0.00036164,9]
[392372045,1761407524438,-500.0,0.00036164,9]
[392372046,1761407524447,-500.0,0.00036164,9]
[392372047,1761407524456,-500.0,0.00036164,9]
[392372048,1761407524465,-500.0,0.00036164,9]
[392372049,1761407524475,-781.72,0.00036164,9]
[392372050,1761407524484,-625.09,0.00036164,9]
[392372051,1761407524493,-500.0,0.00036164,9]
[392372052,1761407524502,-500.0,0.00036164,9]
[392372053,1761407524512,-500.0,0.00036164,9]
[392372054,1761407524522,-500.0,0.00036164,9]
[392372055,1761407524531,-479.76007739,0.00036164,9]
[392372056,1761407524540,-500.0,0.00036164,9]
[392372057,1761407524553,-500.0,0.00036164,9]
[392372058,1761407524562,-500.0,0.00036164,9]
[392372059,1761407524571,-500.0,0.00036164,9]
[392372060,1761407524581,-500.0,0.00036164,9]
[392372061,1761407524590,-563.33,0.00036164,9]
[392372062,1761407524599,-280.74195164,0.00036164,9]
[392372063,1761407524608,-500.0,0.00036164,9]
[392372064,1761407524618,-500.0,0.00036164,9]
[392372065,1761407524627,-500.0,0.00036164,9]
[392372066,1761407524637,-816.06,0.00036164,9]
[392372067,1761407524646,-500.0,0.00036164,9]
[392372068,1761407524656,-500.0,0.00036164,9]
[392372069,1761407524665,-500.0,0.00036164,9]
[392372070,1761407524674,-500.0,0.00036164,9]
[392372071,1761407524684,-500.0,0.00036164,9]
[392372072,1761407524692,-500.0,0.00036164,9]
[392372073,1761407524702,-500.0,0.00036164,9]
[392372074,1761407524711,-589.76,0.00036164,9]
[392372075,1761407524720,-500.0,0.00036164,9]
[392372076,1761407524729,-259.08785643,0.00036164,9]
[392372077,1761407524738,-500.0,0.00036164,9]
[392372078,1761407524749,-500.0,0.00036164,9]
[392372079,1761407524758,-500.0,0.00036164,9]
[392372080,1761407524768,-500.0,0.00036164,9]
[392372081,1761407524778,-500.0,0.00036164,9]
[392372082,1761407524787,-648.01,0.00036164,9]
[392372083,1761407524797,-526.85,0.00036164,9]
[392372084,1761407524811,-627.18,0.00036164,9]
[392372085,1761407524820,-500.0,0.00036164,9]
[392372086,1761407524969,-500.0,0.00036164,9]
[392372087,1761407524990,-500.0,0.00036164,9]
[392372088,1761407525000,-157.56730388,0.00036164,9]
[392372089,1761407525009,-500.0,0.00036164,9]
[392372090,1761407525019,-4318.47,0.00036164,2]
[392372091,1761407525028,-500.0,0.00036164,9]
[392372092,1761407525037,-500.0,0.00036164,9]
[392372093,1761407525046,-498.80298698,0.00036164,9]
[392372094,1761407525057,-500.0,0.00036164,9]
[392372095,1761407525066,-729.5,0.00036164,2]
[392372096,1761407525075,-500.0,0.00036164,9]
[392372097,1761407525086,-500.0,0.00036164,9]
[392372098,1761407525106,-500.0,0.00036164,9]
[392372099,1761407525115,-500.0,0.00036164,9]
[392372100,1761407525124,-546.95,0.00036164,9]
[392372101,1761407525135,-387.5313491,0.00036164,9]
[392372102,1761407525144,-500.0,0.00036164,9]
[392372103,1761407525154,-500.0,0.00036164,9]
[392372104,1761407525163,-500.0,0.00036164,9]
[392372105,1761407525173,-500.0,0.00036164,9]
[392372106,1761407525182,-500.0,0.00036164,9]
[392372107,1761407525191,-527.81,0.00036164,9]
[392372108,1761407525201,-512.17,0.00036164,9]
[392372109,1761407525210,-500.0,0.00036164,9]
[392372110,1761407525220,-500.0,0.00036164,9]
[392372111,1761407525230,-500.0,0.00036164,9]
[392372112,1761407525239,-500.0,0.00036164,9]
[392372113,1761407525248,-534.68,0.00036164,9]
[392372114,1761407525258,-500.0,0.00036164,9]
[392372115,1761407525267,-500.0,0.00036164,9]
[392372116,1761407525276,-500.0,0.00036164,9]
[392372117,1761407525286,-500.0,0.00036164,9]
[392372118,1761407525295,-500.0,0.00036164,9]
[392372119,1761407525304,-500.0,0.00036164,9]
[392372120,1761407525314,-500.0,0.00036164,9]
[392372121,1761407525326,-500.0,0.00036164,9]
[392372122,1761407525336,-500.0,0.00036164,9]
[392372123,1761407525345,-500.0,0.00036164,9]
[392372124,1761407525355,-300.0,0.00036164,2]
[392372125,1761407525364,-500.0,0.00036164,9]
[392372126,1761407525373,-500.0,0.00036164,9]
[392372127,1761407525383,-500.0,0.00036164,9]
[392372128,1761407525393,-500.0,0.00036164,9]
[392372129,1761407525403,-500.0,0.00036164,9]
[392372130,1761407525412,-500.0,0.00036164,9]
[392372131,1761407525422,-500.0,0.00036164,9]
[392372132,1761407525432,-500.0,0.00036164,9]
[392372133,1761407525442,-500.0,0.00036164,9]
[392372134,1761407525452,-502.39,0.00036164,9]
[392372135,1761407525465,-500.0,0.00036164,9]
[392372136,1761407525474,-500.0,0.00036164,9]
[392372137,1761407525484,-500.0,0.00036164,9]
[392372138,1761407525495,-500.0,0.00036164,9]
[392372139,1761407525506,-500.0,0.00036164,9]
[392372140,1761407525516,-524.93,0.00036164,9]
[392372141,1761407525526,-500.0,0.00036164,9]
[392372142,1761407525536,-500.0,0.00036164,9]
[392372143,1761407525545,-500.0,0.00036164,9]
[392372144,1761407525555,-537.16,0.00036164,9]
[392372145,1761407525565,-500.0,0.00036164,9]
[392372146,1761407525575,-555.59,0.00036164,9]
[392372147,1761407525585,-500.0,0.00036164,9]
[392372148,1761407525595,-675.84,0.00036164,9]
[392372149,1761407525605,-500.0,0.00036164,9]
[392372150,1761407525615,-500.0,0.00036164,9]
[392372151,1761407525625,-500.0,0.00036164,9]
[392372152,1761407525634,-564.02019999,0.00036164,9]
[392372153,1761407525644,-500.0,0.00036164,9]
[392372154,1761407525656,-567.53,0.00036164,9]
[392372155,1761407525666,-500.0,0.00036164,9]
[392372156,1761407525677,-500.0,0.00036164,9]
[392372157,1761407525687,-500.0,0.00036164,9]
[392372158,1761407525697,-500.0,0.00036164,9]
[392372159,1761407525707,-500.0,0.00036164,9]
[392372160,1761407525718,-182.79357843,0.00036164,9]
[392372161,1761407525728,-500.0,0.00036164,9]
[392372162,1761407525738,-500.0,0.00036164,9]
[392372163,1761407525748,-1555.41,0.00036164,9]
[392372164,1761407525757,-500.0,0.00036164,9]
[392372165,1761407525767,-500.0,0.00036164,9]
[392372166,1761407525777,-500.0,0.00036164,9]
[392372167,1761407525786,-709.21,0.00036164,9]
[392372168,1761407525796,-500.0,0.00036164,9]
[392372169,1761407525806,-500.0,0.00036164,9]
[392372170,1761407525817,-500.0,0.00036164,9]
[392372171,1761407525827,-1122.80547065,0.00036164,120]
[392372172,1761407525836,-942.51,0.00036164,9]
[392372173,1761407525846,-500.0,0.00036164,9]
[392372174,1761407525856,-500.0,0.00036164,9]
[392372175,1761407525867,-15600.96,0.00036164,9]
[392372176,1761407525877,-2147.12,0.00036164,9]
[392372177,1761407525887,-500.0,0.00036164,9]
[392372178,1761407525897,-500.0,0.00036164,9]
[392372179,1761407525907,-500.0,0.00036164,9]
[392372180,1761407525917,-500.0,0.00036164,9]
[392372181,1761407525927,-602.26,0.00036164,9]
[392372182,1761407525936,-500.0,0.00036164,9]
[392372183,1761407525946,-553.68,0.00036164,9]
[392372184,1761407525955,-500.0,0.00036164,9]
[392372185,1761407525965,-500.0,0.00036164,9]
[392372186,1761407525974,-500.0,0.00036164,9]
[392372187,1761407525984,-500.0,0.00036164,9]
[392372188,1761407525994,-647.484214,0.00036164,9]
[392372189,1761407526004,-500.0,0.00036164,9]
[392372190,1761407526013,-500.0,0.00036164,9]
[392372191,1761407526023,-500.0,0.00036164,9]
[392372192,1761407526032,-1157.24,0.00036164,9]
[392372193,1761407526041,-500.0,0.00036164,9]
[392372194,1761407526051,-899.55,0.00036164,9]
[392372195,1761407526079,-500.0,0.00036164,9]
[392372196,1761407526099,-500.0,0.00036164,9]
[392372197,1761407526119,-500.0,0.00036164,9]
[392372198,1761407526142,-500.0,0.00036164,9]
[392372199,1761407526157,-558.03,0.00036164,9]
[392372200,1761407526176,-657.01,0.00036164,9]
[392372201,1761407526198,-500.0,0.00036164,9]
[392372202,1761407526215,-500.0,0.00036164,9]
[392372203,1761407526235,-500.0,0.00036164,9]
[392372204,1761407526253,-500.0,0.00036164,9]
[392372205,1761407526276,-500.0,0.00036164,9]
[392372206,1761407526295,-496.35583658,0.00036164,9]
[392372207,1761407526308,-500.0,0.00036164,9]
[392372208,1761407526331,-500.0,0.00036164,9]
[392372209,1761407526345,-500.0,0.00036164,9]
[392372210,1761407526362,-500.0,0.00036164,9]
[392372211,1761407526378,-500.0,0.00036164,9]
[392372212,1761407526395,-500.0,0.00036164,9]
[392372213,1761407526412,-500.0,0.00036164,9]
[392372214,1761407526429,-500.0,0.00036164,9]
[392372215,1761407526445,-500.0,0.00036164,7]
[392372216,1761407526461,-500.0,0.00036164,9]
[392372217,1761407526477,-500.0,0.00036164,9]
[392372218,1761407526493,-500.0,0.00036164,9]
[392372219,1761407526508,-500.0,0.00036164,9]
[392372220,1761407526523,-500.0,0.00036164,9]
[392372221,1761407526539,-1103.76,0.00036164,9]
[392372222,1761407526555,-500.0,0.00036164,9]
[392372223,1761407526570,-586.96,0.00036164,9]
[392372224,1761407526585,-677.29,0.00036164,9]
[392372225,1761407526600,-275.21056673,0.00036164,9]
[392372226,1761407526615,-500.0,0.00036164,9]
[392372227,1761407526630,-500.0,0.00036164,9]
[392372228,1761407526645,-601.98,0.00036164,9]
[392372229,1761407526660,-755.77,0.00036164,9]
[392372230,1761407526675,-27349.58,0.00036164,9]
[392372231,1761407526690,-3162.18,0.00036164,9]
[392372232,1761407526705,-500.0,0.00036164,9]
[392372233,1761407526720,-500.0,0.00036164,9]
[392372235,1761407526734,-541.75,0.00036164,9]
[392372236,1761407526749,-500.0,0.00036164,9]
[392372237,1761407526764,-500.0,0.00036164,9]
[392372238,1761407526779,-500.0,0.00036164,9]
[392372239,1761407526793,-500.0,0.00036164,9]
[392372240,1761407526808,-568.48,0.00036164,9]
[392372241,1761407526823,-793.74,0.00036164,9]
[392372242,1761407526838,-612.62,0.00036164,9]
[392372243,1761407526854,-580.5,0.00036164,9]
[392372244,1761407526868,-500.0,0.00036164,9]
[392372245,1761407526883,-500.0,0.00036164,9]
[392372246,1761407526898,-512.1,0.00036164,9]
[392372247,1761407526913,-500.0,0.00036164,9]
[392372248,1761407526929,-402.90822568,0.00036164,9]
[392372249,1761407526944,-500.0,0.00036164,9]
[392372250,1761407526960,-500.0,0.00036164,9]
[392372251,1761407526977,-500.0,0.00036164,9]
[392372252,1761407526993,-500.0,0.00036164,9]
[392372253,1761407527009,-500.0,0.00036164,9]
[392372254,1761407527024,-500.0,0.00036164,9]